[Event "31st MPL National U18 Chess-ch 2022"]
[Site "Pollachi"]
[Date "2022.04.23"]
[Round "11.4"]
[White "Rakshith Srinivasan"]
[Black "Ilamparthi A R"]
[Result "0-1"]
[ECO "B86"]
[WhiteElo "1856"]
[BlackElo "1969"]
[Annotator "TA"]
[PlyCount "101"]
[EventDate "2022.04.18"]
[EventCountry "IND"]
[SourceTitle "playchess.com"]
[Source "ChessBase"]
[SourceQuality "1"]
[TimeControl "5400+30"]

{[%evp 15,101,25,22,23,45,21,66,54,60,50,41,17,56,0,39,40,59,4,8,-43,0,1,3,-76,-63,-83,-83,-116,-72,-175,-108,-85,-100,-173,-176,-190,-168,-176,-123,-182,-160,-172,-171,-169,-150,-143,-150,-190,-191,-232,-219,-276,-257,-271,-291,-377,-369,-652,-646,-856,-850,-838,-821,-795,-786,-862,-354,-456,0,-657,-648,-632,-460,-701,-475,-472,-355,-635,-631,-822,-616,-616,-610,-608,-606,-600,-584,-561]} 1. e4 {[%emt 0:00:02]} c5 {[%emt 0:00:07]} 2. Nf3 {[%emt 0:00:04]} d6 {[%emt 0:00:04]} 3. d4 {[%emt 0:00:03]} cxd4 {[%emt 0:00:06]} 4. Nxd4 {[%emt 0:00:03]} Nf6 {[%emt 0:00:06]} 5. Nc3 {[%emt 0:00:02]} a6 {[%emt 0:00:05]} 6. Bc4 {[%emt 0:00:04]} e6 {[%emt 0:01:19]} 7. Bb3 {[%emt 0:00:05]} Be7 {[%emt 0:00:10] Recently 7...Nbd7 got a lot of attention.} 8. g4 {[%emt 0:00:21]} h6 {[%emt 1:32:33]} 9. Be3 {[%emt 0:00:31] B86: Sicilian Scheveningen/Najdorf: 6 Bc4, without early ...b5.} Nc6 {[%emt 0:00:00]} (9... b5) 10. f3 {[%emt 0:00:36] [#]} Ne5 $146 {[%emt 0:00:00]} (10... Qc7 11. Qd2 Ne5 12. h4 b5 13. O-O-O Nc4 14. Bxc4 Qxc4 15. g5 Nh5 16. Kb1 hxg5 17. Bxg5) ({Predecessor:} 10... Qc7 11. Qd2 Ne5 12. h4 b5 13. O-O-O Nc4 14. Bxc4 Qxc4 15. g5 Nh5 16. Kb1 hxg5 17. Bxg5 {1-0 (28) Grover,S (2511)-Zhao,J (2610) Chess.com INT 2019}) 11. Qe2 {[%emt 0:04:17] White is slightly better.} b5 $1 {[%emt 0:00:00]} 12. O-O-O {[%emt 0:00:51] And now h4 would win.} b4 $1 {[%emt 0:00:00]} 13. Nb1 {[%emt 0:05:29]} a5 {[%emt 0:00:00]} 14. Ba4+ {[%emt 0:08:10]} (14. f4 Nexg4 15. e5) (14. f4 $14 Nexg4 15. e5 Nxe3 16. Qxe3 (16. exf6 Nxd1 17. Ba4+ Bd7 $14)) 14... Kf8 {[%emt 0:00:00]} (14... Bd7 15. Bxd7+ Qxd7) 15. Nd2 {[%emt 0:04:04]} Ba6 {[%emt 0:00:00]} 16. Bb5 {[%emt 0:04:46]} (16. Qg2 $1 $14) 16... Bxb5 $11 {[%emt 0:00:00]} 17. Qxb5 {[%emt 0:01:09]} (17. Nxb5 $11 Qd7 18. h4) 17... Qc7 {[%emt 0:00:00]} (17... a4) 18. Kb1 {[%emt 0:05:09]} a4 {[%emt 0:00:00]} 19. Qe2 {[%emt 0:14:15]} (19. h4) (19. h4 $11 {keeps the balance.}) 19... a3 $17 {[%emt 0:00:00]} 20. Nb5 {[%emt 0:00:27]} Qc6 {[%emt 0:00:00]} 21. bxa3 {[%emt 0:13:55]} (21. b3) 21... bxa3 {[%emt 0:00:00]} (21... Qa6 22. Ka1 Rb8) 22. Nb3 {[%emt 0:01:43] [#]} (22. c4) (22. c4 $17) 22... Rb8 {[%emt 0:00:00]} (22... Nxf3 $1 $19 {[%cal Of6e4][%mdl 512]} 23. Qxf3 Qxb5) 23. N5d4 {[%emt 0:01:34]} Qc7 $40 {[%emt 0:00:00][%mdl 128] Black goes for the king. Black is more active.} 24. Bc1 {[%emt 0:04:33]} (24. h4) (24. h4 $17) 24... d5 $19 {[%emt 0:00:00]} 25. h3 {[%emt 0:03:38]} dxe4 {[%emt 0:00:00]} 26. fxe4 {[%emt 0:00:33]} Nfd7 {[%emt 0:00:00]} (26... g6 $19 27. Rhf1 Kg7) 27. Nf3 {[%emt 0:03:35]} (27. h4 $17 {was called for.}) 27... Kg8 {[%emt 0:00:00]} 28. Nxe5 {[%emt 0:03:48]} Nxe5 {[%emt 0:00:00]} 29. h4 {[%emt 0:04:25]} g6 {[%emt 0:00:00]} 30. g5 {[%emt 0:01:43]} h5 {[%emt 0:00:00]} 31. Rh3 {[%emt 0:02:21]} Kh7 {[%emt 0:00:00]} 32. Qh2 {[%emt 0:00:38]} Bf8 {[%emt 0:00:00]} 33. Rf1 {[%emt 0:07:52]} Bg7 {[%emt 0:00:00]} 34. Qe2 {[%emt 0:00:06]} Rhc8 {[%emt 0:00:00]} 35. c3 {[%emt 0:00:34]} Qa5 {[%emt 0:00:20]} 36. Kc2 $2 {[%emt 0:02:18]} (36. Qc2 Rb7 37. Ka1) 36... Qa4 {[%emt 0:00:06]} 37. Bf4 {[%emt 0:00:43]} Nc6 {[%emt 0:00:48] aiming for ...Nd4+.} 38. Kd2 {[%emt 0:01:08]} Rxb3 {[%emt 0:00:40]} 39. axb3 {[%emt 0:00:05]} Qxb3 {[%emt 0:00:03]} 40. Rc1 {[%emt 0:01:36]} Qb2+ {[%emt 0:01:36]} (40... a2 41. Qa6 Qb2+ 42. Ke1 (42. Kd1 Rd8+ 43. Ke1) 42... Be5) (40... a2 $142 41. Qa6 Qb2+ 42. Kd1 Rd8+ 43. Rd3 Rxd3+ 44. Qxd3 Bxc3 $1 {[%mdl 512]}) 41. Kd1 {[%emt 0:00:52] Threatens to win with Qxb2.} Qb3+ {[%emt 0:01:31]} (41... Qb6 42. Rf3 Rd8+ 43. Ke1 a2) ({Black should try} 41... Qb6 $19 42. Rf3 Rd8+ 43. Ke1 a2 44. Qxa2 Qg1+ 45. Ke2 (45. Rf1 $2 Bxc3+ 46. Rxc3 Rd1+ 47. Kxd1 Qxf1+ 48. Kd2 Qf2+ 49. Kd1 Qxa2 $19) 45... Qg2+ 46. Rf2 Qxe4+ 47. Kf1 {[#]} Bxc3 $1 {[%mdl 512]}) 42. Qc2 {[%emt 0:01:03][%mdl 8192]} (42. Kd2 $11 a2 43. Qa6 Qb2+ 44. Kd1 Rd8+ 45. Rd3 Rxd3+ 46. Qxd3 Bxc3 47. Qxc3 Qxc3 48. Rxc3 a1=Q+ 49. Kd2 Qb2+ 50. Rc2 Qd4+ 51. Kc1) 42... Qc4 {[%emt 0:01:07] Hoping for ...Qf1+.} 43. Qe2 {[%emt 0:00:47] Prevents Qf1+.} Qc5 {[%emt 0:01:08][%cal Oa3a2] White must now prevent ...a2!} (43... Qa4+ 44. Qc2 Qa7) 44. Rd3 {[%emt 0:00:47]} (44. Rf3 Rd8+ 45. Ke1) (44. Rf3 $142 a2 45. Qxa2 Qg1+ 46. Ke2 Qg2+ 47. Rf2 Qxe4+ 48. Kf1) 44... Na5 {[%emt 0:01:01][%cal Bc6a5,Ba5c4,Bc4b2][%mdl 32]} 45. Bd6 {[%emt 0:00:57]} Qc6 {[%emt 0:01:02]} (45... Qg1+ 46. Qe1 Qxe1+ 47. Kxe1) 46. e5 $2 {[%emt 0:00:37]} (46. Bb4 Nb3 47. Rc2) (46. Bb4 Nb3 47. Rd6) 46... Nc4 {[%emt 0:00:09][%cal Oa3a2] Strongly threatening ...a2! Black is clearly winning.} 47. Rb1 {[%emt 0:01:08]} Nb2+ {[%emt 0:02:04]} 48. Rxb2 {[%emt 0:00:25]} axb2 {[%emt 0:00:26]} 49. Qxb2 {[%emt 0:00:03]} Qh1+ {[%emt 0:00:28]} 50. Kc2 {[%emt 0:00:07]} Qxh4 51. Qb7 {[%emt 0:00:30] Weighted Error Value: White=0.66/Black=0.41} 0-1

[Event "31st MPL National U18 Chess-ch 2022"]
[Site "Pollachi"]
[Date "2022.04.23"]
[Round "11.5"]
[White "John Veny Akkarakaran"]
[Black "Dinesh Kumar Jaganathan"]
[Result "0-1"]
[ECO "B92"]
[WhiteElo "1687"]
[BlackElo "1943"]
[Annotator "TA"]
[PlyCount "58"]
[EventDate "2022.04.18"]
[EventCountry "IND"]
[SourceTitle "playchess.com"]
[Source "ChessBase"]
[SourceQuality "1"]
[TimeControl "5400+30"]

{[%evp 15,58,0,-6,-8,0,0,69,73,68,68,67,-23,-28,-58,-59,-57,-70,-68,-47,-116,-125,-375,-374,-370,-360,-356,-364,-522,-528,-587,-429,-637,-627,-1029,-1026,-1012,-1013,-984,-952,-2275,-2042,-4237,-3360,-29992,-29993]} 1. e4 {[%emt 0:00:02]} c5 {[%emt 0:00:04]} 2. Nf3 {[%emt 0:00:05]} d6 {[%emt 0:00:04]} 3. d4 {[%emt 0:00:04]} cxd4 {[%emt 0:00:05]} 4. Nxd4 {[%emt 0:00:04]} Nf6 {[%emt 0:00:06]} 5. Nc3 {[%emt 0:00:05]} a6 {[%emt 0:00:04]} 6. Be2 {[%emt 0:00:07]} e5 {[%emt 0:00:05]} 7. Nf3 {[%emt 0:00:05]} Be7 {[%emt 0:00:37]} 8. Bg5 {[%emt 0:00:11]} Nbd7 {[%emt 0:02:36]} 9. a4 {[%emt 0:00:11] 9.a4 is better than 9.0-0. B92: Sicilian Najdorf: 6 Be2.} O-O {[%emt 0:00:25]} (9... Qb6 $5 {[%cal Rb6b2]}) 10. Nd2 {[%emt 0:12:25]} b6 {[%emt 0:01:34]} ({Black should play} 10... d5 $11) 11. Nc4 $14 {[%emt 0:02:40] White is slightly better.} Qc7 {[%emt 0:00:19]} 12. O-O {[%emt 0:01:16]} Bb7 {[%emt 0:01:52]} 13. f3 {[%emt 0:01:23] [#]} (13. Ne3 $14) 13... b5 $146 {[%emt 0:08:30]} ({Predecessor:} 13... h6 14. Bh4 Rfe8 15. Bf2 Rac8 16. Ne3 Bf8 17. Bc4 Qb8 18. Qe2 Nc5 19. Rfd1 Ne6 20. Bxa6 {1-0 (57) Salinas Herrera,P (2514)-Potapova,M (2270) Chess.com INT 2020}) 14. Ne3 {[%emt 0:18:58] [#] aiming for Nf5.} b4 {[%emt 0:15:23]} 15. Nf5 {[%emt 0:10:30]} Bd8 {[%emt 0:01:24]} 16. Na2 {[%emt 0:00:51]} d5 {[%emt 0:01:01]} 17. Qe1 {[%emt 0:13:53]} (17. c3 $15) 17... dxe4 $17 {[%emt 0:08:35]} 18. Bh6 $2 {[%emt 0:06:20] Loses the game.} exf3 $19 {[%emt 0:06:36]} 19. Bxf3 {[%emt 0:07:53]} e4 {[%emt 0:02:50] Really sharp!} 20. Be2 {[%emt 0:01:47]} gxh6 {[%emt 0:02:10]} 21. Qh4 {[%emt 0:00:08]} (21. a5 $142) 21... Kh8 {[%emt 0:01:07]} 22. Rad1 {[%emt 0:00:13]} Qe5 {[%emt 0:14:29]} 23. Nd6 {[%emt 0:01:24]} (23. Qxh6 $142 Rg8 24. Nd6) 23... Bd5 {[%emt 0:00:51]} 24. Qxh6 {[%emt 0:01:50]} Qxd6 {[%emt 0:00:53]} 25. c4 {[%emt 0:00:06]} Qc5+ {[%emt 0:00:54]} 26. Kh1 {[%emt 0:00:01]} Bc6 {[%emt 0:00:25]} 27. g4 {[%emt 0:00:13]} Rg8 {[%emt 0:00:35] [#] Hoping for ...e3+.} 28. Rf5 {[%emt 0:00:04]} e3+ {[%emt 0:00:11]} 29. Kg1 {[%emt 0:00:06]} Qxf5 {[%emt 0:00:05] Weighted Error Value: White=0.91/Black=0.14 (very precise)} 0-1

[Event "31st MPL National U18 Chess-ch 2022"]
[Site "Pollachi"]
[Date "2022.04.23"]
[Round "11.6"]
[White "Avinash Ramesh"]
[Black "Jani Kushal R"]
[Result "1/2-1/2"]
[ECO "D00"]
[WhiteElo "2402"]
[BlackElo "1746"]
[Annotator "TA"]
[PlyCount "108"]
[EventDate "2022.04.18"]
[EventCountry "IND"]
[SourceTitle "playchess.com"]
[Source "ChessBase"]
[SourceQuality "1"]
[TimeControl "5400+30"]

{[%evp 9,108,0,5,-4,0,0,19,8,10,17,25,16,29,0,0,0,0,-24,0,-24,-11,-25,-14,-14,-12,-32,-19,-37,-35,-27,0,0,0,-1,0,-50,-9,-9,-15,-18,-6,-9,0,-40,0,0,18,9,25,12,20,17,18,6,18,0,8,8,22,0,8,0,0,0,0,0,0,0,0,0,0,0,8,-8,-8,-8,-8,-81,0,0,0,-8,-8,-8,-8,-8,-8,-8,-8,-8,-8,-8,0,-8,-8,-8,-8,-8,-8,-8,-172]} 1. d4 {[%emt 0:00:27]} Nf6 {[%emt 0:00:21]} 2. Nc3 {[%emt 0:00:14]} d5 {[%emt 0:00:29]} 3. Bf4 {[%emt 0:00:05]} g6 {[%emt 0:01:11]} 4. e3 {[%emt 0:00:49]} Bg7 {[%emt 0:00:22]} 5. Nb5 {[%emt 0:00:05]} Na6 {[%emt 0:00:36]} 6. h3 {[%emt 0:00:07] D00: 1 d4 d5: Unusual lines.} c6 {[%emt 0:01:15]} 7. Nc3 {[%emt 0:00:05]} O-O {[%emt 1:29:46]} 8. Nf3 {[%emt 0:01:34]} c5 {[%emt 0:00:30]} 9. Bxa6 {[%emt 0:05:47]} bxa6 {[%emt 0:00:00]} 10. dxc5 {[%emt 0:00:41] aiming for Be5.} Qa5 {[%emt 0:00:00]} 11. O-O {[%emt 0:00:37]} Qxc5 {[%emt 0:00:00]} 12. Be5 {[%emt 0:00:04] [#]} Bb7 $146 {[%emt 0:00:00]} ({Predecessor:} 12... Rd8 13. Bxf6 Bxf6 14. Ne4 Qb6 15. Nxf6+ Qxf6 16. Qd4 Qxd4 17. exd4 a5 18. Ne5 e6 {1-0 (26) Bharath,S (2508)-Wahedi,A (2284) Chess.com INT 2022}) 13. Qd4 {[%emt 0:01:46]} Rfc8 {[%emt 0:00:00]} 14. Rac1 {[%emt 0:07:06]} Qxd4 {[%emt 0:00:00]} 15. Bxd4 {[%emt 0:00:09]} Nd7 {[%emt 0:00:00]} 16. Bxg7 {[%emt 0:00:45]} Kxg7 {[%emt 0:00:00]} 17. Rfd1 {[%emt 0:06:57]} Nb6 {[%emt 0:04:30]} 18. Nb1 {[%emt 1:12:12]} f6 {[%emt 0:00:00]} 19. b3 {[%emt 0:00:30]} e5 {[%emt 0:00:00]} 20. Nfd2 {[%emt 0:00:30]} Rc7 {[%emt 0:00:00]} 21. c4 {[%emt 0:00:30]} dxc4 {[%emt 0:02:00]} 22. bxc4 {[%emt 0:00:30]} (22. Nxc4 $11 Rac8 23. Nba3) 22... Rd8 {[%emt 0:00:30]} 23. c5 {[%emt 0:00:00]} Na4 {[%emt 0:00:00]} 24. Nb3 $1 {[%emt 0:01:00]} Rxd1+ {[%emt 0:00:00]} (24... Rdc8 {is more complex.} 25. Rd6 Kf8 26. Rxf6+ Ke7) 25. Rxd1 {[%emt 0:00:00]} Be4 {[%emt 0:00:00]} (25... Nxc5 $2 26. Nxc5 Kf7 27. Nxb7 Rxb7 28. Nc3 $18) 26. N1d2 {[%emt 0:00:00]} Bd5 {[%emt 0:00:00]} 27. Rc1 {[%emt 0:01:30]} e4 {[%emt 0:00:00]} 28. Rc2 {[%emt 0:00:00]} Kf8 {[%emt 0:00:00]} 29. g4 {[%emt 0:00:00]} h5 {[%emt 0:03:30]} 30. gxh5 {[%emt 0:00:00]} gxh5 {[%emt 0:00:00]} 31. h4 {[%emt 0:00:00]} Ke7 {[%emt 0:00:00]} 32. Kh2 {[%emt 0:00:00]} f5 {[%emt 0:00:00]} 33. Kg1 {[%emt 0:00:00]} Kf6 {[%emt 0:00:00]} 34. Kf1 {[%emt 0:00:00]} Ke7 {[%emt 0:00:00]} 35. Ke2 {[%emt 0:00:00]} Kf6 {[%emt 0:00:00]} 36. Kf1 {[%emt 0:00:00]} Ke7 {[%emt 0:00:00]} 37. Nd4 {[%emt 0:00:00]} Rxc5 {[%emt 0:00:00]} 38. Rxc5 {[%emt 0:00:00]} Nxc5 {[%emt 0:00:00]} 39. Nxf5+ $11 {[%emt 0:00:00][%mdl 4096] Endgame KBN-KNN} Kf6 {[%emt 0:00:00]} 40. Ng3 {[%emt 0:00:00]} Ke5 {[%emt 0:00:00]} 41. Nxh5 {[%emt 0:00:00] Pair of Knights!} Bxa2 {[%emt 0:00:00]} 42. Nf4 {[%emt 0:00:00]} a5 {[%emt 0:00:00][%cal Ba6a5,Ba5a4,Ba4a3,Ba3a2][%mdl 32] And now ...a4 would win.} 43. Ke1 {[%emt 0:00:00]} (43. h5 $11 {remains equal.}) 43... Kf5 {[%emt 0:00:00]} (43... a4 $17 44. h5 a3) 44. Kd1 {[%emt 0:00:00] The position is equal.} a4 {[%emt 0:00:00]} 45. Kc2 {[%emt 0:00:05]} a3 {[%emt 0:08:00]} 46. Ne2 {[%emt 0:02:10]} Bf7 {[%emt 0:00:00]} 47. Nc3 {[%emt 0:01:11]} a2 {[%emt 0:00:00]} 48. Kb2 {[%emt 0:07:04]} Nd3+ {[%emt 0:00:00]} 49. Ka1 {[%emt 0:00:00]} Nb4 {[%emt 0:00:00] [#] ...Nc2+ is the strong threat.} 50. Kb2 {[%emt 0:00:00] Against Nc2} Nd3+ {[%emt 0:00:00]} 51. Ka1 {[%emt 0:00:00]} Nxf2 {[%emt 0:00:00]} 52. Ndxe4 {[%emt 0:00:00]} Nxe4 {[%emt 0:00:00]} 53. Nxe4 {[%emt 0:00:00]} Kxe4 {[%emt 0:00:00]} 54. h5 {[%emt 0:00:00]} Ke5 $2 {[%emt 0:04:30] Weighted Error Value: White=0.10 (very precise) /Black=0.09 (flawless)} (54... Kf5 $11) 1/2-1/2

[Event "31st MPL National U18 Chess-ch 2022"]
[Site "Pollachi"]
[Date "2022.04.23"]
[Round "11.7"]
[White "Ayush Sharma"]
[Black "Manish Anto Cristiano F"]
[Result "0-1"]
[ECO "B90"]
[WhiteElo "2302"]
[BlackElo "2236"]
[Annotator "TA"]
[PlyCount "76"]
[EventDate "2022.04.18"]
[EventCountry "IND"]
[SourceTitle "playchess.com"]
[Source "ChessBase"]
[SourceQuality "1"]
[TimeControl "5400+30"]

{[%evp 17,76,22,27,10,33,22,46,28,36,4,19,-14,0,-58,-58,-60,-31,-25,-32,-24,-15,-39,-35,-49,-58,-50,-54,-71,-32,-28,-18,-52,-68,-50,-51,-68,-63,-70,-72,-102,-100,-146,-147,-141,-143,-702,-687,-4886,-4818,-4810,-4810,-4810,-4810,-29976,-29977,-29977,-29978,-29978,-29979,-29976,-29975]} 1. e4 {[%emt 0:00:02]} c5 {[%emt 0:00:13]} 2. Nf3 {[%emt 0:00:09]} d6 {[%emt 0:00:11]} 3. d4 {[%emt 0:00:01]} cxd4 {[%emt 0:00:10]} 4. Nxd4 {[%emt 0:00:02]} Nf6 {[%emt 0:00:12]} 5. Nc3 {[%emt 0:00:04]} a6 {[%emt 0:00:07]} 6. f3 {[%emt 0:00:03]} e5 {[%emt 0:03:21]} 7. Nb3 {[%emt 0:00:02]} h5 {[%emt 0:00:16]} 8. Be3 {[%emt 0:00:20]} Be6 {[%emt 0:00:10]} 9. Qd2 {[%emt 0:00:01]} Nbd7 {[%emt 0:00:48]} 10. Nd5 {[%emt 0:00:02] The main line 10.Nd5 scores better than 10.0-0-0. B90: Sicilian Najdorf: Unusual White 6th moves, 6 Be3 Ng4 and 6 Be3 e5.} Bxd5 {[%emt 0:07:03]} 11. exd5 {[%emt 0:00:06]} b6 {[%emt 0:00:06]} 12. a4 {[%emt 0:17:58] [#] White is slightly better.} Be7 $146 {[%emt 0:02:46]} ({Predecessor:} 12... Qc7 13. Be2 Be7 14. O-O O-O 15. c4 a5 16. Bd3 Nc5 17. Nxc5 bxc5 18. b3 Rfe8 {0-1 (49) Kupervaser,E (2364)-Nedobora,M (2351) Ramat Gan 2020}) 13. a5 {[%emt 1:18:10] next axb6 is good for White.} b5 {[%emt 0:00:28]} 14. Nc1 {[%emt 0:00:00]} e4 {[%emt 0:05:05]} 15. f4 {[%emt 0:00:00]} (15. Na2 $11) 15... Ng4 $15 {[%emt 0:00:52]} 16. Nb3 {[%emt 0:00:00]} O-O {[%emt 0:11:02]} (16... Qc7 {looks sharper.} 17. Nd4 Qc5 18. Be2 Qxd5 19. O-O Ndf6) 17. Be2 {[%emt 0:00:00]} Nxe3 {[%emt 0:06:35]} 18. Qxe3 {[%emt 0:00:00]} Nf6 {[%emt 0:00:56]} 19. O-O {[%emt 0:00:00]} Rc8 {[%emt 0:04:11]} 20. Rac1 {[%emt 0:00:00]} Qd7 {[%emt 0:06:36]} 21. Rfd1 {[%emt 0:00:00][%cal Bf1d1,Bd1d6,Bd6b6][%mdl 32]} Qf5 {[%emt 0:06:21]} 22. Nd4 {[%emt 0:00:00]} Qxd5 {[%emt 0:05:14]} 23. Nxb5 {[%emt 0:00:00]} Qa2 {[%emt 0:07:31]} ({But not} 23... Qc5 24. Qxc5 Rxc5 25. Nxd6 $11) 24. Nxd6 {[%emt 0:00:00]} Bxd6 {[%emt 0:00:06]} 25. Rxd6 {[%emt 0:00:00]} Qxb2 {[%emt 0:00:07]} 26. c4 {[%emt 0:00:00]} ({Don't go for} 26. Rxa6 $2 Nd5 27. Qd2 e3 $1 $19) 26... Rfd8 {[%emt 0:00:54]} 27. Rb6 {[%emt 0:00:00]} Qa2 {[%emt 0:05:05] And now ...Rd2 would win.} 28. Rxa6 {[%emt 0:00:00] [#]} Nd5 $1 {[%emt 0:03:33]} 29. cxd5 {[%emt 0:00:00]} ({White should try} 29. Qxe4 Nc3 30. Rxc3 Qa1+ 31. Kf2 Qxc3 32. Qe3) 29... Rxc1+ $17 {[%emt 0:00:06][%mdl 64] Deflection} 30. Qxc1 {[%emt 0:00:00]} Qxe2 {[%emt 0:00:09][%mdl 4096] Endgame KQR-KQR} 31. Qf1 $2 {[%emt 0:00:00][%mdl 8192] Now White is beyond hope.} (31. Rb6 $17) 31... Qe3+ {[%emt 0:00:58]} 32. Kh1 {[%emt 0:00:00]} Qd3 {[%emt 0:02:46][%cal Rd3f1]} 33. Kg1 {[%emt 0:00:00]} Qd4+ {[%emt 0:00:08]} 34. Kh1 {[%emt 0:00:00]} e3 {[%emt 0:02:48][%cal Be4e3,Be3e2][%mdl 32] ( -> ...e2!)} 35. Rb6 {[%emt 0:00:00]} e2 {[%emt 0:00:11][%cal Re2f1] Black mates.} 36. Qe1 {[%emt 0:00:00]} Qd1 {[%emt 0:00:14][%cal Rd1e1]} 37. Rb1 {[%emt 0:00:00]} Rxd5 {[%emt 0:00:08]} 38. Kg1 {[%emt 0:00:00] [#]} Qxb1 $1 {[%emt 0:00:10][%mdl 512] Weighted Error Value: White=0.81/Black=0.04 (flawless)} 0-1

[Event "31st MPL National U18 Chess-ch 2022"]
[Site "Pollachi"]
[Date "2022.04.23"]
[Round "11.8"]
[White "Ayushh Ravikumar"]
[Black "Agarwal Mukund H"]
[Result "1-0"]
[ECO "A01"]
[WhiteElo "2269"]
[BlackElo "1611"]
[Annotator "TA"]
[PlyCount "103"]
[EventDate "2022.04.18"]
[EventCountry "IND"]
[SourceTitle "playchess.com"]
[Source "ChessBase"]
[SourceQuality "1"]
[TimeControl "5400+30"]

{[%evp 9,103,7,4,-25,0,10,6,16,32,22,27,27,30,29,31,40,26,18,26,6,23,-24,-24,-29,0,-15,-8,-15,0,0,0,0,0,0,0,0,0,0,0,0,31,39,106,45,77,13,68,22,27,31,28,19,29,0,0,0,0,0,0,0,25,27,40,6,8,8,8,8,8,8,8,8,8,8,8,8,8,8,8,8,8,8,54,62,289,8,8,8,222,175,173,13,23,8,36,8]} 1. b3 {[%emt 0:01:07]} e5 {[%emt 0:00:15]} 2. Bb2 {[%emt 0:00:08]} Nc6 {[%emt 0:00:09]} 3. e3 {[%emt 1:30:45]} d5 {[%emt 0:03:21]} 4. Bb5 {[%emt 0:00:00]} Bd6 {[%emt 0:01:00]} 5. Nf3 {[%emt 0:00:00]} Qe7 {[%emt 0:00:28]} 6. O-O {[%emt 0:00:00] A01: Nimzowitsch-Larsen Opening.} Nf6 {[%emt 0:00:35]} 7. d4 {[%emt 0:00:00]} e4 {[%emt 0:01:03]} 8. Ne5 {[%emt 0:00:00] The position is equal.} Bd7 {[%emt 1:27:39]} (8... O-O) 9. Bxc6 {[%emt 0:00:00]} bxc6 {[%emt 0:00:00]} 10. c4 {[%emt 0:00:00]} dxc4 {[%emt 0:01:00]} 11. bxc4 {[%emt 0:00:00]} Rb8 {[%emt 0:00:00]} 12. Bc3 {[%emt 0:00:00]} c5 {[%emt 0:01:00]} 13. Nd2 {[%emt 0:00:00]} O-O $1 {[%emt 0:00:00] [#]} 14. Qc2 $146 {[%emt 0:05:30]} ({Predecessor:} 14. f4 exf3 15. gxf3 cxd4 16. exd4 Bxe5 17. dxe5 Qc5+ 18. Rf2 Nh5 19. Ne4 Qc6 20. Rg2 {0-1 (33) Graham-Campeert,J Belgium 1984}) 14... Rfe8 {[%emt 0:01:00]} 15. Rad1 {[%emt 0:00:00]} (15. Nxd7 Nxd7 16. d5) (15. Nxe4 $142 Bxe5 16. dxe5) 15... cxd4 $11 {[%emt 0:00:00]} (15... Bxe5 16. dxe5 Ng4 17. Qxe4) (15... Bxe5 16. dxe5 Ng4 17. Qxe4 $16) 16. exd4 {[%emt 0:00:00]} c5 {[%emt 0:01:00] [#] Strongly threatening ...cxd4.} 17. Nxd7 {[%emt 0:00:00]} (17. Nxe4 Bf5 18. f3 (18. Nxf6+ Qxf6 19. Nd3 cxd4) 18... Bxe4 19. fxe4 cxd4) (17. Nxe4 Bf5 18. f3 (18. Nxf6+ $2 Qxf6 19. Nd3 cxd4 $19) 18... Bxe4 19. fxe4 cxd4 $19) 17... Nxd7 {[%emt 0:00:00]} 18. Rfe1 {[%emt 0:00:00][%cal Rd2e4]} f5 {[%emt 0:00:00]} 19. Nb3 {[%emt 0:00:00]} Rec8 {[%emt 0:00:00]} 20. f3 {[%emt 0:00:00][%cal Rf3e4]} Nf6 {[%emt 0:00:00]} ({Much less strong is} 20... Qh4 21. g3 Qh3 22. dxc5 Bxc5+ 23. Nxc5 Nxc5 24. fxe4 fxe4 25. Rd5 $16) 21. dxc5 {[%emt 0:00:00]} Bxc5+ {[%emt 0:00:00]} 22. Kh1 {[%emt 0:00:00]} Bb4 {[%emt 0:03:00]} 23. Bxb4 {[%emt 0:04:30]} Rxb4 {[%emt 0:00:00]} 24. c5 {[%emt 0:00:00]} Qb7 {[%emt 0:00:00]} (24... Rb6 $5) 25. Qc3 {[%emt 0:01:00]} Qb8 {[%emt 0:00:00] [#]} (25... Ra4) (25... f4 $14) 26. Rd4 {[%emt 0:00:30]} ({White should try} 26. c6 $1 $16 {[%cal Od1d8] Black must now prevent Rd8+!} Qb6 27. Rd6) 26... Rxd4 {[%emt 0:00:00]} 27. Qxd4 {[%emt 0:00:00]} (27. Nxd4 Qe5 28. c6) ({White should play} 27. Nxd4 $16 Qe5 28. c6) 27... exf3 {[%emt 0:00:00]} (27... Qb5) (27... Qb5 $11) 28. gxf3 {[%emt 0:00:00]} (28. Qc4+ $14 Kh8 29. gxf3) 28... Qb7 {[%emt 0:00:00]} 29. Kg2 {[%emt 0:00:00]} Qa6 {[%emt 0:00:00]} 30. Qd2 {[%emt 0:00:39]} Qc4 {[%emt 0:00:00]} 31. Qe2 {[%emt 0:00:46]} Qxe2+ {[%emt 0:00:00]} 32. Rxe2 {[%emt 0:01:35][%mdl 4096] Endgame KRN-KRN} Kf7 {[%emt 0:00:29]} 33. h4 {[%emt 0:00:00]} g6 {[%emt 0:00:22]} 34. Rd2 {[%emt 0:00:03]} a5 {[%emt 0:05:09]} 35. Rd4 {[%emt 0:01:27]} Ke6 {[%emt 0:00:00]} 36. Ra4 {[%emt 0:00:30]} Ra8 {[%emt 0:00:00]} 37. Rxa5 {[%emt 0:00:00]} Rxa5 38. Nxa5 {[%emt 0:01:00] KN-KN} Kd5 {[%emt 0:00:00]} 39. Nb3 {[%emt 0:00:30]} Kc6 {[%emt 0:00:00]} 40. Kf2 {[%emt 0:00:30]} Nd5 {[%emt 0:01:20]} 41. a4 {[%emt 0:00:30]} f4 {[%emt 0:00:49]} 42. a5 {[%emt 0:00:30]} Kb5 {[%emt 0:00:27]} 43. Ke2 {[%emt 0:00:00] And now Kd3 would win.} Nb4 {[%emt 0:00:20]} 44. Kd2 {Kc3 is the strong threat.} Kc4 {[%emt 0:00:30]} 45. Nc1 {[%cal Oc1d3] Hoping for Nd3!} Kb5 {[%emt 0:00:30]} (45... Nc6 $11) 46. Kc3 $1 $14 {Threatens to win with Nd3.} Nc6 $2 {[%emt 0:00:30]} (46... Kxa5 $14 47. Kc4 Nc2) 47. Nd3 $2 ({White has to play} 47. Nb3 $18 {aiming for Nd4+.} Ne7 48. Kd4) 47... Nxa5 $11 {[%emt 0:00:30]} 48. Kd4 Kc6 $2 {[%emt 0:00:30]} (48... Nc6+ $11 {and Black stays safe.} 49. Kd5 Ne7+ 50. Ke5 Kc4) 49. Ne5+ $18 ({And not} 49. Nxf4 Nb3+ 50. Ke4 Nxc5+ 51. Ke5 Nb3 $11) 49... Kc7 {[%emt 0:00:30]} 50. Ke4 $2 (50. Kd5 $18) 50... Nb3 $1 $11 {[%emt 0:00:30]} 51. Nd3 Kd7 {[%emt 0:00:30]} 52. Kxf4 {[%mdl 32768] Weighted Error Value: White=0.28 (precise) /Black=0.29 (precise) . Sensor Board Error (Ke4/e5)?} 1-0